bitfinex-derivatives/quotes_SOLF0:USTF0_20250705
["timestamp","ask_amount","ask_price","bid_price","bid_amount"]
[1751750591979,16.35628149,147.03,147.02,250.41235582]
[1751750594882,11.51701,147.03,147.02,250.41235582]
[1751750595179,16.35635437,147.03,147.02,250.41235582]
[1751750601085,8.83873989,147.03,147.02,250.41235582]
[1751750601286,16.36747847,147.03,147.02,250.41235582]
[1751750601474,11.51729846,147.03,147.02,250.41235582]
[1751750601679,16.36753386,147.03,147.02,250.41235582]
[1751750602885,8.83873989,147.03,147.02,250.41235582]
[1751750603086,16.36756724,147.03,147.02,250.41235582]
[1751750604188,13.68897716,147.03,147.02,250.41235582]
[1751750604386,16.36767077,147.03,147.02,250.41235582]
[1751750608192,16.36767077,147.03,147.02,247.3999]
[1751750608397,16.36767077,147.03,147.02,250.41235582]
[1751750610598,16.34672398,147.03,147.02,250.41235582]
[1751750616206,11.5174335,147.03,147.02,250.41235582]
[1751750616402,16.34751625,147.03,147.02,250.41235582]
[1751750617901,16.34751625,147.03,147.02,250.41180633]
[1751750619009,16.34751625,147.03,147.02,55.79180633]
[1751750619208,16.34751625,147.03,147.02,250.41180633]
[1751750622210,13.66882264,147.03,147.02,250.41180633]
[1751750622514,16.34868533,147.03,147.02,250.41180633]
[1751750622812,16.34868533,147.03,147.02,247.3999]
[1751750629613,16.34868533,147.03,147.02,250.41180633]
[1751750638319,16.36776297,147.03,147.02,250.41180633]
[1751750640521,16.36774469,147.03,147.02,250.41180633]
[1751750642429,8.83873989,147.03,147.02,250.41180633]
[1751750642623,16.3684246,147.03,147.02,250.41180633]
[1751750644125,16.37103989,147.03,147.02,250.41180633]
[1751750644325,7.52968471,147.03,147.02,250.41180633]
[1751750644623,16.37104483,147.03,147.02,250.41180633]
[1751750644924,7.52968471,147.03,147.02,250.41180633]
[1751750647526,16.37107302,147.03,147.02,250.41180633]
[1751750648425,16.37110354,147.03,147.02,250.41180633]
[1751750660326,7.52971523,147.03,147.02,250.41180633]
[1751750660628,16.3640184,147.03,147.02,250.41180633]
[1751750662636,16.3640184,147.03,147.02,247.3999]
[1751750663830,16.3640184,147.03,147.02,250.41180633]
[1751750665533,16.3640184,147.03,147.02,247.3999]
[1751750680839,11.79093184,147.07,147.04,6.7987]
[1751750681040,4.90379061,147.06,147.05,194.56]
[1751750683644,11.70199061,147.06,147.05,194.56]
[1751750684147,4.90379061,147.06,147.05,194.56]
[1751750685646,11.70199061,147.06,147.05,194.56]
[1751750686248,4.90379061,147.06,147.05,194.56]
[1751750687349,4.91207325,147.06,147.05,194.56]
[1751750688152,11.71027325,147.06,147.05,194.56]
[1751750690350,4.91207325,147.06,147.05,197.57137281]
[1751750690748,4.91207325,147.06,147.05,194.56]
[1751750691053,6.798,147.07,147.05,197.57137281]
[1751750691251,11.85996859,147.09,147.05,194.56]
[1751750691453,4.90891982,147.08,147.05,194.56]
[1751750691654,2.4035,147.11,147.07,3.01137281]
[1751750691862,4.9088519,147.1,147.08,243.9]
[1751750692153,15.05745482,147.15,147.09,47.4]
[1751750692154,9.55426859,147.14,147.09,47.4]
[1751750692355,2.317,147.15,147.09,54.1964]
[1751750692650,7.39198007,147.14,147.09,47.4]
[1751750692851,16.11106249,147.13,147.09,47.4]
[1751750693055,7.39198007,147.12,147.11,3.01137281]
[1751750693354,7.39198007,147.12,147.11,203.76]
[1751750694255,9.1111,147.15,147.11,203.76]
[1751750694451,13.47253409,147.14,147.11,203.76]
[1751750694756,5.37537281,147.18,147.13,3.01137281]
[1751750694948,22.87172541,147.17,147.14,206.06]
[1751750695150,16.07842541,147.16,147.14,206.06]
[1751750695357,19.08979822,147.15,147.14,206.06]
[1751750696044,19.08979822,147.15,147.09,47.4]
[1751750696352,3.01137281,147.13,147.12,206.46]
[1751750696551,2.3068,147.15,147.12,206.46]
[1751750696754,3.01137281,147.13,147.12,206.46]
[1751750698450,9.80587281,147.14,147.12,206.46]
[1751750700155,6.7956,147.12,147.09,47.4]
[1751750700357,3.01137281,147.11,147.09,47.4]
[1751750700663,3.01137281,147.1,147.06,587.06]
[1751750700851,3.01137281,147.08,147.05,48.96]
[1751750701057,11.09118884,147.13,147.06,3.01137281]
[1751750701251,6.7964,147.1,147.07,3.01137281]
[1751750701453,3.01137281,147.11,147.07,209.75137281]
[1751750701662,3.01137281,147.11,147.07,3.01137281]
[1751750702160,8.74291633,147.1,147.07,3.01137281]
[1751750702359,9.80767281,147.11,147.07,3.01137281]
[1751750702951,9.1422,147.13,147.09,3.01137281]
[1751750703262,5.35847281,147.13,147.09,3.01137281]
[1751750703460,9.80687281,147.12,147.08,3.01137281]
[1751750704163,6.7955,147.12,147.08,9.80867281]
[1751750704465,9.80687281,147.12,147.09,3.01137281]
[1751750704662,9.80687281,147.12,147.08,9.80867281]
[1751750706063,9.80687281,147.12,147.08,6.7973]
[1751750706263,9.80687281,147.12,147.08,9.80867281]
[1751750707065,4.85141779,147.11,147.08,9.80867281]
[1751750707266,9.80687281,147.12,147.08,9.80867281]
[1751750707461,4.85163408,147.11,147.08,9.80867281]
[1751750707664,9.80687281,147.12,147.08,9.80867281]
[1751750709070,6.7959,147.11,147.08,9.80867281]
[1751750711372,6.7956,147.12,147.08,9.80867281]
[1751750711565,9.80697281,147.12,147.08,9.80867281]
[1751750711867,9.80697281,147.12,147.08,6.7973]
[1751750712065,6.796,147.11,147.07,9.80887281]
[1751750712261,6.796,147.11,147.07,9.80738121]
[1751750713468,6.796,147.11,147.08,6.7972]
[1751750721477,6.796,147.11,147.09,6.7968]
[1751750726680,6.796,147.11,147.08,6.7971]
[1751750736896,6.7968,147.1,147.06,209.70988121]
[1751750737195,7.10446557,147.09,147.06,206.7]
[1751750737390,9.80668121,147.1,147.06,206.7]
[1751750737590,7.10486759,147.09,147.07,6.7978]
[1751750737890,9.80751861,147.1,147.07,6.7978]
[1751750738197,7.10486759,147.09,147.07,6.7978]
[1751750738493,6.7969,147.09,147.06,6.7981]
[1751750739095,3.01071861,147.1,147.06,6.7981]
[1751750739096,9.80721861,147.1,147.06,6.7981]
[1751750739291,7.10390693,147.09,147.06,6.7981]
[1751750739596,6.7965,147.1,147.06,6.7981]
[1751750739797,7.10340987,147.09,147.06,9.80881861]
[1751750739991,6.7965,147.1,147.06,9.80881861]
[1751750740192,7.10340987,147.09,147.06,9.80881861]
[1751750740392,6.7965,147.1,147.06,9.80881861]
[1751750740698,7.10398396,147.09,147.06,9.8084972]
[1751750740892,6.7965,147.1,147.06,9.8084972]
[1751750741089,7.10398396,147.09,147.06,9.8084972]
[1751750741290,6.7965,147.1,147.06,9.8084972]
[1751750741492,7.10453577,147.09,147.06,9.8084972]
[1751750741696,6.7965,147.1,147.06,9.8084972]
[1751750741995,7.10453577,147.09,147.06,9.8084972]
[1751750742195,6.7965,147.1,147.06,9.8084972]
[1751750742393,7.10500985,147.09,147.06,9.8084972]
[1751750742598,6.7965,147.1,147.06,9.8084972]
[1751750742896,7.10501151,147.09,147.06,9.8084972]
[1751750743096,6.7965,147.1,147.06,9.8084972]
[1751750743397,13.90288091,147.09,147.06,9.8084972]
[1751750743596,6.7969,147.09,147.06,9.8084972]
[1751750744097,6.7969,147.09,147.06,6.7981]
[1751750744293,6.7969,147.09,147.06,9.8084972]
[1751750744794,6.7965,147.1,147.07,6.7977]
[1751750744995,7.10469303,147.09,147.07,6.7977]
[1751750745188,6.7965,147.1,147.07,6.7977]
[1751750745388,7.10442261,147.09,147.07,6.7977]
[1751750745588,6.7965,147.1,147.07,6.7977]
[1751750745792,7.10442261,147.09,147.07,6.7977]
[1751750745993,6.7965,147.1,147.07,6.7977]
[1751750746195,7.10442261,147.09,147.07,6.7977]
[1751750746394,6.7965,147.1,147.07,6.7977]
[1751750746595,7.10430291,147.09,147.07,6.7977]
[1751750746892,6.7965,147.1,147.07,6.7977]
[1751750747093,7.10430291,147.09,147.07,6.7977]
[1751750747294,6.7965,147.1,147.07,6.7977]
[1751750747497,7.10650256,147.09,147.07,6.7977]
[1751750747692,6.7965,147.1,147.07,6.7977]
[1751750747892,7.10650256,147.09,147.07,6.7977]
[1751750748095,6.7965,147.1,147.07,6.7977]
[1751750748297,15.59269988,147.09,147.07,6.7977]
[1751750748496,6.7965,147.1,147.07,6.7977]
[1751750748698,15.59245513,147.09,147.07,6.7977]
[1751750748894,6.7965,147.1,147.07,6.7977]
[1751750751702,6.796,147.11,147.08,6.7973]
[1751750751896,15.57039939,147.1,147.08,6.7973]
[1751750752097,6.796,147.11,147.08,6.7973]
[1751750752298,15.57039939,147.1,147.08,6.7973]
[1751750752497,6.796,147.11,147.08,6.7973]
[1751750752698,15.57046092,147.1,147.08,6.7973]
[1751750752900,6.796,147.11,147.08,6.7973]
[1751750753102,15.57046092,147.1,147.08,6.7973]
[1751750753302,6.796,147.11,147.08,6.7973]
[1751750753503,15.57034048,147.1,147.08,6.7973]
[1751750753703,6.796,147.11,147.08,6.7973]
[1751750753905,15.57050912,147.1,147.08,6.7973]
[1751750754108,6.796,147.11,147.08,6.7973]
[1751750754403,15.57227795,147.1,147.08,6.7973]
[1751750754599,6.796,147.11,147.08,6.7973]
[1751750754805,15.57233366,147.1,147.08,6.7973]
[1751750755000,6.796,147.11,147.08,6.7973]
[1751750755200,15.57233366,147.1,147.08,6.7973]
[1751750755402,6.7964,147.1,147.08,6.7973]
[1751750755799,6.7964,147.1,147.08,9.80707909]
[1751750756307,6.7959,147.11,147.08,9.80707909]
[1751750756704,2.3471,147.13,147.1,9.80617909]
[1751750757006,20.49319559,147.12,147.1,6.7964]
[1751750757200,9.1424,147.13,147.1,9.80617909]
[1751750757404,20.49175374,147.12,147.1,9.80617909]
[1751750757604,9.1424,147.13,147.1,9.80617909]
[1751750757804,20.50044458,147.12,147.1,9.80617909]
[1751750758000,14.85246695,147.15,147.11,9.80567909]
[1751750758307,20.49961707,147.14,147.11,9.80567909]
[1751750758508,8.48399076,147.13,147.11,6.7959]
[1751750758703,12.11107909,147.15,147.11,9.80567909]
[1751750758904,20.50025852,147.14,147.11,9.80567909]
[1751750759106,4.56076521,147.13,147.11,9.80567909]
[1751750759303,12.11107909,147.15,147.11,9.80567909]
[1751750759503,20.68227701,147.14,147.11,9.80567909]
[1751750759710,13.22655738,147.13,147.11,9.80567909]
[1751750759905,12.11107909,147.15,147.11,9.80567909]
[1751750760104,20.68567953,147.14,147.11,9.80567909]
[1751750760305,13.22642475,147.13,147.11,9.80567909]
[1751750760505,4.74488687,147.12,147.11,9.80567909]
[1751750761004,3.00977909,147.17,147.12,6.7951]
[1751750761204,20.79029394,147.16,147.13,3.00977909]
[1751750761398,12.27319362,147.15,147.13,3.00977909]
[1751750761599,57.11537909,147.18,147.14,3.00977909]
[1751750761804,23.78917243,147.17,147.13,3.00977909]
[1751750762005,15.82559714,147.16,147.13,9.80437909]
[1751750762204,4.77389305,147.15,147.13,9.80437909]
[1751750762505,3.00977909,147.17,147.13,9.80437909]
[1751750762698,13.28138886,147.16,147.13,9.80437909]
[1751750762897,4.77165811,147.15,147.13,9.80437909]
[1751750763104,3.00977909,147.17,147.13,9.80437909]
[1751750763309,4.77151603,147.16,147.13,9.80437909]
[1751750763613,9.80297909,147.17,147.13,9.80437909]
[1751750763913,13.27575817,147.16,147.13,9.80437909]
[1751750764105,4.76968326,147.15,147.13,9.80437909]
[1751750764306,9.80297909,147.17,147.13,9.80437909]
[1751750764503,13.27193796,147.16,147.13,9.80437909]
[1751750764705,4.768339,147.15,147.13,9.80437909]
[1751750765009,3.00977909,147.16,147.13,9.80437909]
[1751750765209,4.76848098,147.15,147.13,9.80437909]
[1751750765399,3.00977909,147.16,147.13,6.7946]
[1751750765599,4.79987576,147.15,147.13,9.80437909]
[1751750765802,3.00977909,147.16,147.13,9.80437909]
[1751750766004,4.79987576,147.15,147.13,9.80437909]
[1751750766305,3.00977909,147.16,147.13,9.80437909]
[1751750766615,4.79885482,147.15,147.13,9.80437909]
[1751750766914,3.00977909,147.16,147.13,9.80437909]
[1751750767109,4.79885474,147.15,147.13,9.80437909]
[1751750767309,3.00977909,147.16,147.13,9.80437909]
[1751750767510,4.79793337,147.15,147.13,9.80437909]
[1751750767714,3.00977909,147.16,147.13,9.80437909]
[1751750767917,4.79793337,147.15,147.13,9.80437909]
[1751750768213,3.00977909,147.16,147.13,9.80437909]
[1751750771119,60.8985,147.18,147.13,9.80437909]
[1751750771327,3.00977909,147.16,147.13,6.7946]
[1751750771521,3.00977909,147.16,147.13,9.80437909]
[1751750772521,3.00977909,147.17,147.13,9.80437909]
[1751750772728,4.80429764,147.16,147.14,6.7943]
[1751750773029,5.41017909,147.19,147.15,3.00977909]
[1751750773324,4.80386869,147.18,147.15,3.00977909]
[1751750773530,4.80386869,147.17,147.15,3.00977909]
[1751750773729,12.20267909,147.19,147.15,9.80357909]
[1751750773931,4.80285992,147.18,147.16,3.00977909]
[1751750774131,2.4004,147.19,147.16,3.00977909]
[1751750774329,4.80184049,147.18,147.17,6.7931]
[1751750774631,3.00977909,147.2,147.17,9.80287909]
[1751750774837,3.00977909,147.2,147.17,6.7931]
[1751750775031,3.00977909,147.19,147.11,4.7744]
[1751750775330,3.00977909,147.2,147.16,3.00977909]
[1751750775534,6.7917,147.21,147.16,9.80307909]
[1751750775727,4.8101728,147.2,147.16,9.80307909]
[1751750775927,3.00977909,147.2,147.16,9.80307909]
[1751750776127,9.80167909,147.2,147.16,9.80307909]
[1751750776729,3.00977909,147.19,147.16,9.80307909]
[1751750777029,3.00977909,147.19,147.16,3.00977909]
[1751750777232,6.7919,147.2,147.15,6.7939]
[1751750777430,9.80167909,147.2,147.16,3.00977909]
[1751750777631,9.80167909,147.2,147.15,6.7939]
[1751750777831,9.80167909,147.2,147.15,9.80367909]
[1751750778033,9.80207909,147.19,147.15,9.80367909]
[1751750778838,9.80207909,147.19,147.14,6.7944]
[1751750779030,9.80207909,147.19,147.15,3.00977909]
[1751750779337,9.80207909,147.19,147.14,6.7944]
[1751750779525,9.80207909,147.19,147.15,3.00977909]
[1751750779837,6.7923,147.19,147.15,3.00977909]
[1751750780235,9.80207909,147.19,147.15,3.00977909]
[1751750781333,3.00977909,147.18,147.13,6.7949]
[1751750781536,3.00977909,147.17,147.14,3.00977909]
[1751750781837,6.7934,147.17,147.13,9.80467909]
[1751750782631,6.7934,147.17,147.13,3.00977909]
[1751750785438,9.80317909,147.17,147.13,3.00977909]
[1751750785633,6.7936,147.16,147.12,55.9153]
[1751750785833,6.7936,147.16,147.13,3.00977909]
[1751750786837,6.7936,147.16,147.12,58.92507909]
[1751750787040,6.7942,147.15,147.12,52.12977909]
[1751750787536,6.7946,147.14,147.12,52.12977909]
[1751750788239,6.7943,147.15,147.12,52.12977909]
[1751750790442,6.7943,147.15,147.12,55.9155]
[1751750793042,6.7943,147.15,147.12,49.12]
[1751750793942,6.7946,147.14,147.12,49.12]
[1751750798050,6.7946,147.14,147.12,52.12977909]
[1751750798950,6.7946,147.14,147.12,49.12]
[1751750802152,6.795,147.13,147.12,49.12]
[1751750802454,6.795,147.13,147.07,6.9541]
[1751750802455,7.76953594,147.13,147.08,51.68977909]
[1751750802646,4.75975685,147.12,147.09,6.7969]
[1751750802848,9.80507909,147.13,147.09,6.7969]
[1751750803043,4.76004107,147.12,147.09,6.7969]
[1751750803247,4.76004107,147.12,147.08,51.68977909]
[1751750803248,3.00977909,147.12,147.08,48.68]
[1751750803455,4.76023839,147.11,147.08,51.68977909]
[1751750803755,3.00977909,147.12,147.08,48.68]
[1751750803956,4.76057589,147.11,147.08,51.68977909]
[1751750804155,3.00977909,147.12,147.08,51.68977909]
[1751750804356,4.75929915,147.11,147.08,51.68977909]
[1751750804559,6.7962,147.11,147.08,51.68977909]
[1751750805155,3.00977909,147.12,147.08,48.68]
[1751750805459,3.00977909,147.1,147.06,3.00977909]
[1751750805754,4.75950543,147.09,147.07,3.00977909]
[1751750806056,6.7965,147.1,147.07,3.00977909]
[1751750806958,6.7965,147.1,147.08,3.00977909]
[1751750807258,6.7965,147.1,147.07,3.00977909]
[1751750808453,3.00977909,147.11,147.06,6.798]
[1751750808654,16.41875068,147.1,147.06,3.00977909]
[1751750808850,4.75314466,147.09,147.06,3.00977909]
[1751750809161,6.7967,147.1,147.06,3.00977909]
[1751750809360,9.80647909,147.1,147.06,3.00977909]
[1751750809551,6.7969,147.09,147.06,3.00977909]
[1751750811153,6.7974,147.08,147.06,3.00977909]
[1751750811550,6.7974,147.08,147.05,3.00977909]
[1751750812157,6.7978,147.07,147.05,3.00977909]
[1751750812662,6.7978,147.07,147.04,58.49025523]
[1751750814761,6.7975,147.08,147.04,58.49025523]
[1751750816067,6.7978,147.07,147.04,58.49025523]
[1751750823159,6.7978,147.07,147.04,58.49022624]
[1751750823364,3.01122624,147.09,147.05,6.7987]
[1751750823863,6.7976,147.08,147.05,6.7987]
[1751750824776,6.7976,147.08,147.05,9.80992624]
[1751750825174,6.7976,147.08,147.05,6.7987]
[1751750825470,6.7976,147.08,147.05,9.80992624]
[1751750826669,6.7976,147.08,147.05,6.7987]
[1751750828976,6.7978,147.07,147.05,6.7987]
[1751750830573,6.7978,147.07,147.04,58.49012624]
[1751750845181,6.7978,147.07,147.04,55.4789]
[1751750845382,6.7978,147.07,147.04,58.49012624]
[1751750848186,6.7978,147.07,147.04,55.4789]
[1751750848385,6.7978,147.07,147.04,58.49012624]
[1751750849681,9.80872624,147.08,147.05,6.7985]
[1751750849880,15.9645496,147.07,147.05,9.80972624]
[1751750850085,3.01122624,147.09,147.05,9.80972624]
[1751750850385,20.81173583,147.08,147.05,9.80972624]
[1751750850586,15.9646123,147.07,147.05,9.80972624]
[1751750850785,13.38621739,147.06,147.05,9.80972624]
[1751750852279,13.38621739,147.06,147.05,3.01122624]
[1751750854187,15.96873685,147.06,147.05,3.01122624]
[1751750855892,15.96935514,147.06,147.05,3.01122624]
[1751750856186,15.96935514,147.06,147.04,58.49022624]
[1751750856391,6.7978,147.07,147.04,58.49022624]
[1751750856593,15.99611389,147.06,147.04,58.49022624]
[1751750856793,6.7978,147.07,147.04,58.49022624]
[1751750856984,15.99611389,147.06,147.04,58.49022624]
[1751750857190,6.7978,147.07,147.04,58.49022624]
[1751750857390,15.99637679,147.06,147.04,58.49019149]
[1751750857596,6.7978,147.07,147.04,58.49019149]
[1751750857796,15.99776616,147.06,147.04,58.49019149]
[1751750857996,6.7978,147.07,147.04,58.49019149]
[1751750858196,15.99776616,147.06,147.04,58.49019149]
[1751750858401,6.7978,147.07,147.04,58.49019149]
[1751750858601,15.99762213,147.06,147.04,58.49019149]
[1751750858801,4.69550109,147.05,147.04,58.49019149]
[1751750862504,4.69550109,147.05,147.04,48.68]
[1751750864607,4.69550109,147.05,147.03,9.81059149]
[1751750864905,4.69504925,147.04,147.02,47.84]
[1751750865096,4.69504925,147.03,147.02,47.84]
[1751750865496,13.4131104,147.03,147.02,47.84]
[1751750866302,8.71806115,147.03,147.02,54.6401]
[1751750867008,13.40967683,147.03,147.02,54.6401]
[1751750867209,8.71806115,147.03,147.02,54.6401]
[1751750867402,9.80979149,147.06,147.02,54.6401]
[1751750867708,20.82885088,147.05,147.02,54.6401]
[1751750868007,15.98051975,147.04,147.02,54.6401]
[1751750868208,9.80979149,147.06,147.02,54.6401]
[1751750868412,20.8212695,147.05,147.03,6.7995]
[1751750868609,15.97392212,147.04,147.03,6.7995]
[1751750870307,13.39354691,147.04,147.03,6.7995]
[1751750876219,8.70405983,147.04,147.03,6.7995]
[1751750876518,8.66808253,147.04,147.03,6.7995]
[1751750876711,9.81075317,147.06,147.03,6.7995]
[1751750876911,15.8935635,147.05,147.03,6.7995]
[1751750877118,9.81075317,147.06,147.03,6.7995]
[1751750877320,15.89323128,147.05,147.03,6.7995]
[1751750877614,9.81075317,147.06,147.03,6.7995]
[1751750877818,15.89255651,147.05,147.03,6.7995]
[1751750878015,9.81075317,147.06,147.03,6.7995]
[1751750878216,15.89255342,147.05,147.03,6.7995]
[1751750878418,9.81075317,147.06,147.03,6.7995]
[1751750878619,15.89167765,147.05,147.03,6.7995]
[1751750878818,9.81075317,147.06,147.03,6.7995]
[1751750879118,15.90472625,147.05,147.03,6.7995]
[1751750879313,9.81075317,147.06,147.03,6.7995]
[1751750879513,15.9039736,147.05,147.03,6.7995]
[1751750879811,9.81075317,147.06,147.03,6.7995]
[1751750880008,15.90397669,147.05,147.03,6.7995]
[1751750880212,9.81075317,147.06,147.03,6.7995]
[1751750880412,15.90831167,147.05,147.03,6.7995]
[1751750880620,6.7986,147.06,147.03,6.7995]
[1751750880822,15.90831167,147.05,147.03,6.7995]
[1751750881120,6.7986,147.06,147.03,6.7995]
[1751750881322,15.90823147,147.05,147.03,6.7995]
[1751750881511,6.7986,147.06,147.03,6.7995]
[1751750881710,15.907703,147.05,147.03,6.7995]
[1751750881916,6.7986,147.06,147.03,6.7995]
[1751750882117,15.907703,147.05,147.03,6.7995]
[1751750882316,6.7986,147.06,147.03,6.7995]
[1751750882514,15.90721175,147.05,147.03,6.7995]
[1751750882718,6.7986,147.06,147.03,6.7995]
[1751750882922,15.90721175,147.05,147.03,6.7995]
[1751750883219,6.7986,147.06,147.03,6.7995]
[1751750883420,15.90683799,147.05,147.03,6.7995]
[1751750883622,6.7986,147.06,147.03,6.7995]
[1751750883921,15.90679902,147.05,147.03,6.7995]
[1751750884122,6.7986,147.06,147.03,6.7995]
[1751750884317,15.90674974,147.05,147.03,6.7995]
[1751750884523,6.7986,147.06,147.03,6.7995]
[1751750884722,15.90649365,147.05,147.03,6.7995]
[1751750885020,6.7986,147.06,147.03,6.7995]
[1751750885220,15.90649365,147.05,147.03,6.7995]
[1751750885417,6.7986,147.06,147.03,6.7995]
[1751750885619,15.90629076,147.05,147.03,6.7995]
[1751750885819,6.7986,147.06,147.03,6.7995]
[1751750886017,15.9062919,147.05,147.03,6.7995]
[1751750886212,6.7982,147.07,147.04,9.81125317]
[1751750886420,20.7104425,147.06,147.04,3.01215317]
[1751750886618,15.90625493,147.05,147.04,3.01215317]
[1751750886819,8.66529001,147.05,147.04,3.01215317]
[1751750887018,9.0112,147.08,147.05,6.7986]
[1751750887225,15.90464656,147.07,147.05,9.81075317]
[1751750887521,13.31984783,147.06,147.05,9.81075317]
[1751750888318,8.66454012,147.06,147.05,9.81075317]
[1751750888625,9.0112,147.08,147.05,9.81075317]
[1751750888814,15.90530705,147.07,147.05,9.81075317]
[1751750889019,9.0112,147.08,147.05,9.81075317]
[1751750889221,15.90529674,147.07,147.05,9.81075317]
[1751750889524,9.0112,147.08,147.05,6.7986]
[1751750889823,15.90572045,147.07,147.06,3.01215317]
[1751750890425,13.32076704,147.07,147.06,3.01215317]
[1751750891226,13.32076704,147.07,147.05,9.81075317]
[1751750891425,9.0112,147.08,147.05,9.81075317]
[1751750891626,13.34082218,147.07,147.05,9.81075317]
[1751750891824,9.0112,147.08,147.05,9.81075317]
[1751750892423,2.2137,147.08,147.05,9.81075317]
[1751750896932,15.92507403,147.08,147.07,6.7978]
[1751750897525,15.92507403,147.08,147.06,6.7981]
[1751750897830,6.7969,147.09,147.06,6.7981]
[1751750898030,15.93501208,147.08,147.06,6.7981]
[1751750898225,6.7969,147.09,147.06,6.7981]
[1751750898422,11.27229694,147.08,147.06,6.7981]
[1751750898632,6.7969,147.09,147.06,6.7981]
[1751750898832,15.93737751,147.08,147.06,6.7981]
[1751750899129,6.7966,147.1,147.07,6.7977]
[1751750899330,15.94826208,147.09,147.07,6.7977]
[1751750899531,13.36042702,147.08,147.06,3.01215317]
[1751750899721,6.7971,147.09,147.06,9.81025317]
[1751750899930,4.6756424,147.08,147.06,9.81025317]
[1751750900131,6.7971,147.09,147.06,6.7981]
[1751750900331,11.47290873,147.08,147.06,3.01215317]
[1751750900532,6.7973,147.08,147.06,3.01215317]
[1751750900728,63.00416545,147.12,147.06,3.01215317]
[1751750900936,6.7968,147.1,147.06,9.81005317]
[1751750901130,15.94548905,147.09,147.06,9.81005317]
[1751750901331,4.67541427,147.08,147.06,9.81005317]
[1751750901523,3.01215317,147.11,147.06,9.81005317]
[1751750901730,20.7888769,147.1,147.06,9.81005317]
[1751750901928,15.96193048,147.09,147.06,9.81005317]
[1751750902129,4.674997,147.08,147.06,9.81005317]
[1751750902428,6.7967,147.1,147.06,9.81005317]
[1751750902628,15.96064256,147.09,147.06,9.81005317]
[1751750902829,4.67473197,147.08,147.06,9.81005317]
[1751750903129,6.7967,147.1,147.06,9.81005317]
[1751750903334,15.96054599,147.09,147.06,9.81005317]
[1751750903535,6.7967,147.1,147.06,9.81005317]
[1751750903728,13.37229025,147.09,147.06,9.81005317]
[1751750903927,6.7967,147.1,147.06,9.81005317]
[1751750904127,13.37229025,147.09,147.06,9.81005317]
[1751750904331,6.7967,147.1,147.06,9.81005317]
[1751750904530,13.37097092,147.09,147.06,9.81005317]
[1751750904730,6.7967,147.1,147.06,9.81005317]
[1751750904933,13.37097092,147.09,147.06,9.81005317]
[1751750905135,6.7967,147.1,147.06,9.81005317]
[1751750905334,13.37086006,147.09,147.06,9.81005317]
[1751750905537,6.7967,147.1,147.06,9.81005317]
[1751750905838,13.36971778,147.09,147.06,9.81005317]
[1751750906030,6.7967,147.1,147.06,9.81005317]
[1751750906236,15.95620601,147.09,147.06,9.81005317]
[1751750906431,6.7967,147.1,147.06,9.81005317]
[1751750906635,15.95503828,147.09,147.06,9.81005317]
[1751750906835,6.7967,147.1,147.06,9.81005317]
[1751750907135,13.36877566,147.09,147.06,9.81005317]
[1751750907336,6.7967,147.1,147.06,9.81005317]
[1751750907535,13.36748953,147.09,147.06,9.81005317]
[1751750907736,6.7967,147.1,147.06,9.81005317]
[1751750907737,6.7967,147.1,147.07,3.01215317]
[1751750908037,4.67262497,147.09,147.07,3.01215317]
[1751750908233,6.7961,147.11,147.05,47.34]
[1751750908439,15.95206806,147.1,147.07,3.01215317]
[1751750908639,9.80825317,147.11,147.07,3.01215317]
[1751750908840,15.95102813,147.1,147.07,3.01215317]
[1751750909039,9.80825317,147.11,147.07,3.01215317]
[1751750909241,15.95102813,147.1,147.07,3.01215317]
[1751750909442,9.80825317,147.11,147.07,3.01215317]
[1751750909640,15.9494386,147.1,147.08,6.7973]
[1751750909940,9.80825317,147.11,147.08,6.7973]
[1751750910143,15.9494386,147.1,147.08,6.7973]
[1751750910334,9.80825317,147.11,147.08,6.7973]
[1751750910535,15.94489104,147.1,147.08,6.7973]
[1751750910737,9.80825317,147.11,147.08,6.7973]
[1751750910940,15.94489104,147.1,147.07,9.80975317]
[1751750911138,3.01215317,147.11,147.07,9.80975317]
[1751750911437,15.94490471,147.1,147.07,9.80975317]
[1751750911638,9.80835317,147.11,147.07,9.80975317]
[1751750911837,15.94418828,147.1,147.07,9.80975317]
[1751750912037,9.80835317,147.11,147.07,9.80975317]
[1751750912344,15.94418828,147.1,147.07,9.80975317]
[1751750912538,9.80835317,147.11,147.07,9.80975317]
[1751750912838,15.94370797,147.1,147.07,9.80975317]
[1751750913138,9.80835317,147.11,147.07,9.80975317]